fUSD/lending_fUSD_20241227
["ID","MTS","AMOUNT","RATE_DAILY","PERIOD"]
[346837712,1735314667413,-500.0,0.00011858,2]
[346837713,1735314667424,-2259.33,0.00011858,2]
[346837714,1735314667434,-500.0,0.00011858,2]
[346837715,1735314667443,-562.15,0.00011858,2]
[346837716,1735314667453,-540.97,0.00011858,2]
[346837717,1735314667463,-578.24,0.00011858,2]
[346837718,1735314667473,-1046.46,0.00011858,2]
[346837719,1735314667482,-516.89,0.00011858,2]
[346837720,1735314667492,-719.96,0.00011858,2]
[346837721,1735314667502,-2180.48,0.00011859,2]
[346837722,1735314667512,-2636.7,0.00011859,2]
[346837723,1735314667522,-3214.32,0.00011859,2]
[346837724,1735314667532,-2198.14,0.00011859,2]
[346837725,1735314667542,-5513.14,0.00011859,2]
[346837726,1735314667552,-3304.63,0.00011859,2]
[346837727,1735314667562,-15099.28,0.00011859,2]
[346837728,1735314667572,-9411.99,0.00011859,2]
[346837729,1735314667582,-500.0,0.00011859,2]
[346837730,1735314667592,-1428.14,0.00011859,2]
[346837731,1735314667602,-1285.3,0.00011859,2]
[346837732,1735314667611,-500.0,0.00011859,2]
[346837733,1735314667623,-1050.04,0.00011859,2]
[346837734,1735314667633,-1139.88,0.00011859,2]
[346837735,1735314667644,-1849.16,0.00011859,2]
[346837736,1735314667654,-4460.96,0.00011859,2]
[346837737,1735314667663,-1294.45,0.00011859,2]
[346837738,1735314667673,-1061.59,0.00011859,2]
[346837739,1735314667683,-1105.15,0.00011859,2]
[346837740,1735314667692,-26313.55,0.00011859,2]
[346837741,1735314667702,-500.0,0.00011859,2]
[346837742,1735314667712,-1754.47,0.00011859,2]
[346837743,1735314667721,-1268.1,0.00011859,2]
[346837744,1735314667730,-1451.39,0.00011859,2]
[346837745,1735314667739,-1278.18,0.00011859,2]
[346837746,1735314667749,-500.0,0.00011859,2]
[346837747,1735314667758,-1799.03,0.00011859,2]
[346837748,1735314667768,-807.86,0.00011859,2]
[346837749,1735314667777,-2017.1,0.00011859,2]
[346837750,1735314667788,-869.13,0.00011859,2]
[346837751,1735314667797,-500.0,0.00011859,2]
[346837752,1735314667808,-1343.09,0.00011859,2]
[346837753,1735314667817,-1994.25,0.00011859,2]
[346837754,1735314667827,-5849.07,0.00011859,2]
[346837755,1735314667836,-2130.16,0.00011859,2]
[346837756,1735314667846,-1333.4,0.00011859,2]
[346837757,1735314667856,-8303.21,0.00011859,2]
[346837758,1735314667867,-1018.72,0.00011859,2]
[346837759,1735314667877,-3267.15,0.00011859,2]
[346837760,1735314667887,-1475.34,0.00011859,2]
[346837761,1735314667897,-1034.53,0.00011859,2]
[346837762,1735314667907,-6746.23499311,0.00011859,2]
[346837763,1735314667924,-5133.51500689,0.00011859,2]
[346837764,1735314667935,-2836.16,0.00011859,2]
[346837765,1735314667948,-2086.16,0.00011859,2]
[346837766,1735314667958,-2544.72,0.00011859,2]
[346837767,1735314667968,-3035.61,0.00011859,2]
[346837768,1735314667979,-3089.48,0.00011859,2]
[346837769,1735314667990,-821.48,0.00011859,2]
[346837770,1735314668011,-2766.05,0.00011859,2]
[346837771,1735314668023,-6643.89,0.00011859,2]
[346837772,1735314668033,-977.3,0.00011859,2]
[346837773,1735314668045,-876.0,0.00011859,2]
[346837774,1735314668055,-2061.18,0.00011859,2]
[346837775,1735314668066,-1293.12,0.00011859,2]
[346837776,1735314668077,-572.68,0.00011859,2]
[346837777,1735314668088,-3188.44,0.00011859,2]
[346837778,1735314668098,-1091.23,0.00011859,2]
[346837779,1735314668108,-500.0,0.00011859,2]
[346837780,1735314668120,-500.0,0.00011859,2]
[346837781,1735314668131,-755.13,0.00011859,2]
[346837782,1735314668141,-10858.22,0.00011859,2]
[346837783,1735314668151,-2809.39,0.00011859,2]
[346837784,1735314668162,-3529.43,0.00011859,2]
[346837785,1735314668172,-3090.43,0.00011859,2]
[346837786,1735314668183,-3172.16,0.00011859,2]
[346837787,1735314668301,-3187.58,0.00011859,2]
[346837788,1735314668312,-4190.88,0.00011859,2]
[346837789,1735314668322,-2891.24,0.00011859,2]
[346837790,1735314668331,-6669.52,0.00011859,2]
[346837791,1735314668340,-3171.34,0.00011859,2]
[346837792,1735314668349,-2341.79,0.00011859,2]
[346837793,1735314668360,-500.0,0.0001186,2]
[346837794,1735314668370,-998.45,0.0001186,2]
[346837795,1735314668380,-500.0,0.0001186,2]
[346837796,1735314668389,-500.0,0.0001186,2]
[346837797,1735314668399,-1141.25,0.0001186,2]
[346837798,1735314668409,-586.73,0.0001186,2]
[346837799,1735314668419,-791.98,0.0001186,2]
[346837800,1735314668428,-531.43,0.0001186,2]
[346837801,1735314668437,-500.0,0.0001186,2]
[346837802,1735314668447,-937.0,0.0001186,2]
[346837803,1735314668456,-575.25,0.0001186,2]
[346837804,1735314668465,-863.89,0.0001186,2]
[346837805,1735314668475,-185.23289781,0.0001186,2]
[346837806,1735314668485,-500.0,0.0001186,2]
[346837807,1735314668495,-651.36,0.0001186,2]
[346837808,1735314668504,-500.0,0.0001186,2]
[346837809,1735314668514,-1000.88,0.0001186,2]
[346837810,1735314668524,-500.0,0.0001186,2]
[346837811,1735314668534,-500.0,0.0001186,2]
[346837812,1735314668543,-500.0,0.0001186,2]
[346837813,1735314668553,-890.74,0.0001186,2]
[346837814,1735314668562,-882.38,0.0001186,2]
[346837815,1735314668573,-880.75,0.0001186,2]
[346837816,1735314668582,-789.64,0.0001186,2]
[346837817,1735314668592,-500.0,0.0001186,2]
[346837818,1735314668602,-552.75,0.0001186,2]
[346837819,1735314668613,-500.0,0.0001186,2]
[346837820,1735314668628,-500.0,0.0001186,2]
[346837821,1735314668637,-500.0,0.0001186,2]
[346837822,1735314668647,-1112.84,0.0001186,2]
[346837823,1735314668656,-500.0,0.0001186,2]
[346837824,1735314668666,-1420.62,0.0001186,2]
[346837825,1735314668676,-500.0,0.0001186,2]
[346837826,1735314668686,-9686.93,0.0001186,2]
[346837827,1735314668695,-32059.34,0.0001186,2]
[346837828,1735314668705,-1657.37942693,0.0001186,2]
[346837829,1735314668719,-324.78475893,0.0001186,2]
[346837830,1735314671546,-3601.01581414,0.0001186,2]
[346837831,1735314671556,-2787.38,0.0001186,2]
[346837832,1735314671565,-2148.59,0.0001186,2]
[346837833,1735314671575,-3436.91,0.0001186,2]
[346837834,1735314671584,-31140.88,0.0001186,2]
[346837835,1735314671594,-1143.6,0.0001186,2]
[346837836,1735314671603,-7488.08,0.0001186,2]
[346837837,1735314671613,-5395.3,0.0001186,2]
[346837838,1735314671622,-1837.27,0.0001186,2]
[346837839,1735314671634,-1047.51,0.0001186,2]
[346837840,1735314671643,-3205.59,0.0001186,2]
[346837841,1735314671653,-6005.2,0.0001186,2]
[346837842,1735314671662,-2094.76,0.0001186,2]
[346837843,1735314671671,-2392.9,0.0001186,2]
[346837844,1735314671681,-2348.06,0.0001186,2]
[346837845,1735314671690,-4557.41,0.00011861,2]
[346837846,1735314671700,-159915.37078764,0.0001188,2]
[346837847,1735314671710,-157.67,0.00011889,2]
[346837848,1735314671719,-900.0,0.000119,4]
[346837849,1735314671729,-1000.0,0.00011921,2]
[346837850,1735314671738,-1000.0,0.00011921,2]
[346837851,1735314671747,-436.57,0.00011938,2]
[346837852,1735314671757,-316.62,0.00011938,2]
[346837853,1735314671766,-151.16,0.00011938,2]
[346837854,1735314671775,-514.52,0.00011995,2]
[346837855,1735314671786,-2092.47797015,0.00012,2]
[346837856,1735314671795,-1580.0,0.00012,2]
[346837857,1735314671804,-1880.0,0.00012,3]
[346837858,1735314671815,-12800.5386841,0.00012,2]
[346837859,1735314671824,-700.0,0.00012,2]
[346837860,1735314671834,-264.01864104,0.00012,2]
[346837861,1735314671853,-525.755001,0.00012,2]
[346837862,1735314671864,-610.35,0.00012,2]
[346837863,1735314671879,-57.22330671,0.00012,2]
[346837864,1735314671889,-439.50997607,0.00012,2]
[346837865,1735314673116,-500.0,0.0001076,2]
[346837866,1735314673128,-999.19,0.00010761,2]
[346837867,1735314673138,-999.19,0.00011035,2]
[346837868,1735314673149,-999.19,0.00011309,2]
[346837869,1735314673161,-7603.01,0.00011311,2]
[346837870,1735314673172,-999.19,0.00011583,2]
[346837871,1735314673182,-7603.01,0.00011585,2]
[346837872,1735314673192,-999.19,0.00011857,2]
[346837873,1735314673201,-7603.01,0.00011859,2]
[346837874,1735314673211,-1560.49002393,0.00012,2]
[346837875,1735314673221,-23573.33,0.00012055,2]
[346837876,1735314673232,-325.98780845,0.00012055,2]
[346837877,1735314673241,-414.33180949,0.00012056,2]
[346837878,1735314673251,-9990.57341991,0.00012111,2]
[346837879,1735314673260,-1830.05,0.0001213,2]
[346837880,1735314673270,-500.0,0.0001213,2]
[346837881,1735314673279,-500.0,0.0001213,2]
[346837882,1735314673289,-568.85,0.0001213,2]
[346837883,1735314673300,-500.0,0.0001213,2]
[346837884,1735314673310,-1250.01,0.0001213,2]
[346837885,1735314673320,-500.0,0.0001213,2]
[346837886,1735314673329,-661.99,0.0001213,2]
[346837887,1735314673339,-546.18,0.0001213,2]
[346837888,1735314673349,-500.0,0.0001213,2]
[346837889,1735314673360,-2535.94,0.0001213,2]
[346837890,1735314673372,-500.0,0.0001213,2]
[346837891,1735314673387,-529.83,0.0001213,2]
[346837892,1735314673398,-719.28,0.0001213,2]
[346837893,1735314673407,-500.0,0.0001213,2]
[346837894,1735314673418,-500.0,0.0001213,2]
[346837895,1735314673429,-500.0,0.0001213,2]
[346837896,1735314673440,-680.34,0.0001213,2]
[346837897,1735314673451,-650.59,0.0001213,2]
[346837898,1735314673463,-868.96,0.0001213,2]
[346837899,1735314673475,-500.0,0.0001213,2]
[346837900,1735314673485,-4704.19,0.0001213,2]
[346837901,1735314673496,-500.0,0.0001213,2]
[346837902,1735314673507,-500.0,0.0001213,2]
[346837903,1735314673517,-500.0,0.0001213,2]
[346837904,1735314673528,-2282.93,0.0001213,2]
[346837905,1735314673539,-500.0,0.0001213,2]
[346837906,1735314673550,-500.0,0.0001213,2]
[346837907,1735314673560,-611.24,0.0001213,2]
[346837908,1735314673571,-472.51867621,0.0001213,2]
[346837909,1735314673581,-2535.13,0.0001213,2]
[346837910,1735314673590,-500.0,0.0001213,2]
[346837911,1735314673600,-780.37,0.0001213,2]
[346837912,1735314673611,-500.0,0.0001213,2]
[346837913,1735314673623,-500.0,0.0001213,2]
[346837914,1735314673635,-712.42,0.0001213,2]
[346837915,1735314673645,-4155.17,0.0001213,2]
[346837916,1735314673655,-500.0,0.0001213,2]
[346837917,1735314673665,-3234.99,0.0001213,2]
[346837918,1735314673675,-566.16,0.0001213,2]
[346837919,1735314673686,-786.83,0.0001213,2]
[346837920,1735314673696,-500.0,0.0001213,2]
[346837921,1735314673706,-860.62,0.0001213,2]
[346837922,1735314673715,-500.0,0.0001213,2]
[346837923,1735314673726,-500.0,0.0001213,2]
[346837924,1735314673736,-12170.52,0.0001213,2]
[346837925,1735314673746,-836.32,0.0001213,2]
[346837926,1735314673756,-500.0,0.0001213,2]
[346837927,1735314673766,-2010.96,0.0001213,2]
[346837928,1735314673776,-2213.47,0.0001213,2]
[346837929,1735314673785,-500.0,0.0001213,2]
[346837930,1735314673797,-1252.58,0.0001213,2]
[346837931,1735314673810,-2718.09,0.0001213,2]
[346837932,1735314673822,-500.0,0.0001213,2]
[346837933,1735314673834,-732.35,0.0001213,2]
[346837934,1735314673844,-500.0,0.0001213,2]
[346837935,1735314673854,-500.0,0.0001213,2]
[346837936,1735314673863,-4595.98,0.0001213,2]
[346837937,1735314673873,-500.0,0.0001213,2]
[346837938,1735314673886,-14998.88,0.0001213,2]
[346837939,1735314673896,-527.58,0.0001213,2]
[346837940,1735314673906,-1032.83,0.0001213,2]
[346837941,1735314673915,-626.37,0.0001213,2]
[346837942,1735314673926,-500.0,0.0001213,2]
[346837943,1735314673936,-1290.23,0.0001213,2]
[346837944,1735314673951,-2085.47,0.0001213,2]
[346837945,1735314673961,-567.06,0.0001213,2]
[346837946,1735314673971,-500.0,0.0001213,2]
[346837947,1735314673982,-1488.05,0.0001213,2]
[346837948,1735314673991,-500.0,0.0001213,2]
[346837949,1735314674001,-783.63,0.0001213,2]
[346837950,1735314674012,-500.0,0.0001213,2]
[346837951,1735314674023,-500.0,0.0001213,2]
[346837952,1735314674033,-1477.63,0.0001213,2]
[346837953,1735314674043,-847.81,0.0001213,2]
[346837954,1735314674053,-516.5,0.00012131,2]
[346837955,1735314674063,-983.17,0.00012131,2]
[346837956,1735314674073,-500.0,0.00012131,2]
[346837957,1735314674083,-739.14,0.00012131,2]
[346837958,1735314674094,-1387.39,0.00012131,2]
[346837959,1735314674104,-1079.48,0.00012131,2]
[346837960,1735314674114,-946.91,0.00012131,2]
[346837961,1735314674124,-1299.31,0.00012131,2]
[346837962,1735314674136,-500.0,0.00012131,2]
[346837963,1735314674146,-814.72,0.00012131,2]
[346837964,1735314674156,-724.25,0.00012131,2]
[346837965,1735314674167,-522.75,0.00012131,2]
[346837966,1735314674176,-680.08,0.00012131,2]
[346837967,1735314674186,-1198.62,0.00012131,2]
[346837968,1735314674197,-1102.13,0.00012131,2]
[346837969,1735314674207,-638.59,0.00012131,2]
[346837970,1735314674217,-501.65,0.00012131,2]
[346837971,1735314674227,-1348.88,0.00012131,2]
[346837972,1735314674237,-530.54,0.00012131,2]
[346837973,1735314674247,-500.0,0.00012131,2]
[346837974,1735314674256,-1208.94,0.00012131,2]
[346837975,1735314674266,-609.11,0.00012131,2]
[346837976,1735314674276,-509.01,0.00012131,2]
[346837977,1735314674286,-500.0,0.00012131,2]
[346837978,1735314674296,-500.0,0.00012131,2]
[346837979,1735314674306,-500.0,0.00012131,2]
[346837980,1735314674316,-500.0,0.00012131,2]
[346837981,1735314674326,-500.0,0.00012131,2]
[346837982,1735314674336,-685.05,0.00012131,2]
[346837983,1735314674346,-1216.66,0.00012131,2]
[346837984,1735314674357,-710.2,0.00012131,2]
[346837985,1735314674367,-1636.92,0.00012131,2]
[346837986,1735314674378,-620.77,0.00012131,2]
[346837987,1735314674387,-920.08,0.00012131,2]
[346837988,1735314674398,-2109.62,0.00012131,2]
[346837989,1735314674407,-917.58,0.00012131,2]
[346837990,1735314674417,-1778.375056,0.00012131,2]
[346837991,1735314674427,-526.48,0.00012131,2]
[346837992,1735314674438,-1720.346607,0.00012131,2]
[346837993,1735314674448,-1621.01,0.00012131,2]
[346837994,1735314674458,-500.0,0.00012131,2]
[346837995,1735314674469,-556.15,0.00012131,2]
[346837996,1735314674479,-500.0,0.00012131,2]
[346837997,1735314674489,-1530.41,0.00012131,2]
[346837998,1735314674499,-500.0,0.00012131,2]
[346837999,1735314674511,-831.45,0.00012131,2]
[346838000,1735314674523,-500.0,0.00012131,2]
[346838001,1735314674533,-921.98,0.00012131,2]
[346838002,1735314674544,-740.22128715,0.00012131,2]
[346838003,1735314675201,-503.3980493,0.00012131,2]
[346838004,1735314675518,-19.76066355,0.00012131,2]
[346838005,1735314675528,-797.29,0.00012131,2]
[346838006,1735314675538,-378.1,0.00012131,2]
[346838007,1735314675548,-786.03,0.00012131,2]
[346838008,1735314675558,-796.43,0.00012131,2]
[346838009,1735314675567,-1765.58,0.00012131,2]
[346838010,1735314675577,-828.91,0.00012131,2]
[346838011,1735314675587,-1172.53,0.00012131,2]
[346838012,1735314675596,-663.52,0.00012131,2]
[346838013,1735314675605,-853.02,0.00012131,2]
[346838014,1735314675615,-338.82933685,0.00012131,2]
[346838015,1735314675629,-568.14066315,0.00012131,2]
[346838016,1735314675638,-529.27,0.00012131,2]
[346838017,1735314675648,-1141.69194206,0.00012131,2]
[346838018,1735314675659,-192.17805794,0.00012131,2]
[346838019,1735314675669,-1319.49,0.00012131,2]
[346838020,1735314675679,-3072.60763196,0.00012131,2]
[346838021,1735314675690,-1254.32754042,0.00012131,2]
[346838022,1735314675701,-560.83482762,0.00012131,2]
[346838023,1735314675712,-500.0,0.00012131,2]
[346838024,1735314675723,-2237.93,0.00012131,2]
[346838025,1735314675732,-1001.93,0.00012131,2]
[346838026,1735314675742,-3222.46,0.00012131,2]
[346838027,1735314675751,-500.0,0.00012131,2]
[346838028,1735314675761,-3359.7,0.00012131,2]
[346838029,1735314675771,-1328.75,0.00012131,2]
[346838030,1735314675780,-738.47,0.00012131,2]
[346838031,1735314675790,-16955.09925265,0.00012131,2]
[346838032,1735314675802,-22520.37074735,0.00012131,2]
[346838033,1735314675812,-1652.9,0.00012131,2]
[346838034,1735314675821,-1428.82,0.00012131,2]
[346838035,1735314675830,-1137.14,0.00012131,2]
[346838036,1735314675840,-6543.56,0.00012131,2]
[346838037,1735314675849,-810.13264294,0.00012131,2]
[346838038,1735314675861,-17.73735706,0.00012131,2]
[346838039,1735314675870,-1530.1,0.00012131,2]
[346838040,1735314675881,-1433.86,0.00012131,2]
[346838041,1735314675890,-2242.5,0.00012131,2]
[346838042,1735314675900,-2850.04136953,0.00012131,2]
[346838043,1735314675912,-2791.54863047,0.00012131,2]
[346838044,1735314675921,-41.77136953,0.00012131,2]
[346838045,1735314675944,-1460.90863047,0.00012131,2]
[346838046,1735314675955,-873.88,0.00012131,2]
[346838047,1735314675964,-1482.82,0.00012131,2]
[346838048,1735314675974,-1564.53,0.00012131,2]
[346838049,1735314675983,-1281.87,0.00012131,2]
[346838050,1735314675994,-2606.52,0.00012131,2]
[346838051,1735314676004,-106.68901917,0.00012131,2]
[346838052,1735314676017,-3582.94098083,0.00012131,2]
[346838053,1735314676027,-1463.07,0.00012131,2]
[346838054,1735314676036,-500.0,0.00012131,2]
[346838055,1735314676046,-2264.62046213,0.00012131,2]
[346838056,1735314676058,-287.602672,0.00012131,2]
[346838057,1735314676075,-1844.58686587,0.00012131,2]
[346838058,1735314676084,-852.59283535,0.00012131,2]
[346838059,1735314676219,-873.48,0.00010762,2]
[346838060,1735314676230,-1102.0,0.00011255,2]
[346838061,1735314676239,-446.85716465,0.00012131,2]
[346838062,1735314676249,-1438.28,0.00012131,2]
[346838063,1735314676258,-3302.06,0.00012131,2]
[346838064,1735314676268,-1819.62,0.00012131,2]
[346838065,1735314676279,-1269.62,0.00012131,2]
[346838066,1735314676289,-2188.83,0.00012131,2]
[346838067,1735314676299,-1486.8,0.00012131,2]
[346838068,1735314676308,-1996.33,0.00012131,2]
[346838069,1735314676317,-500.0,0.00012131,2]
[346838070,1735314676327,-803.93,0.00012131,2]
[346838071,1735314676336,-500.0,0.00012131,2]
[346838072,1735314676345,-1150.91,0.00012131,2]
[346838073,1735314676355,-2855.56,0.00012131,2]
[346838074,1735314676364,-2947.89,0.00012131,2]
[346838075,1735314676374,-1812.15,0.00012131,2]
[346838076,1735314676386,-561.88,0.00012131,2]
[346838077,1735314676395,-1607.89,0.00012131,2]
[346838078,1735314676405,-2503.79,0.00012131,2]
[346838079,1735314676414,-1153.58,0.00012131,2]
[346838080,1735314676423,-562.9,0.00012131,2]
[346838081,1735314676432,-3283.5,0.00012131,2]
[346838082,1735314676442,-999.19,0.00012131,2]
[346838083,1735314676451,-626.48,0.00012132,2]
[346838084,1735314676461,-500.0,0.00012132,2]
[346838085,1735314676470,-550.51,0.00012132,2]
[346838086,1735314676479,-1337.0,0.00012132,2]
[346838087,1735314676489,-597.32,0.00012132,2]
[346838088,1735314676498,-500.0,0.00012132,2]
[346838089,1735314676507,-727.75,0.00012132,2]
[346838090,1735314676518,-35.78790755,0.00012132,2]
[346838091,1735314676530,-697.69209245,0.00012132,2]
[346838092,1735314676539,-530.32,0.00012132,2]
[346838093,1735314676548,-500.0,0.00012132,2]
[346838094,1735314676558,-500.0,0.00012132,2]
[346838095,1735314676567,-500.0,0.00012132,2]
[346838096,1735314676576,-877.44,0.00012132,2]
[346838097,1735314676586,-500.0,0.00012132,2]
[346838098,1735314676596,-600.94,0.00012132,2]
[346838099,1735314676605,-500.0,0.00012132,2]
[346838100,1735314676615,-500.0,0.00012132,2]
[346838101,1735314676625,-500.0,0.00012132,2]
[346838102,1735314676636,-500.0,0.00012132,2]
[346838103,1735314676646,-766.04,0.00012132,2]
[346838104,1735314676656,-500.0,0.00012132,2]
[346838105,1735314676667,-925.46,0.00012132,2]
[346838106,1735314676677,-786.15,0.00012132,2]
[346838107,1735314676687,-560.73,0.00012132,2]
[346838108,1735314676697,-500.0,0.00012132,2]
[346838109,1735314676707,-896.62,0.00012132,2]
[346838110,1735314676716,-512.97,0.00012132,2]
[346838111,1735314676726,-500.0,0.00012132,2]
[346838112,1735314676736,-548.71,0.00012132,2]
[346838113,1735314676746,-1165.55,0.00012132,2]
[346838114,1735314676755,-164.09421319,0.00012132,2]
[346838115,1735314676764,-500.0,0.00012132,2]
[346838116,1735314676775,-693.77,0.00012132,2]
[346838117,1735314676785,-1248.5,0.00012132,2]
[346838118,1735314676795,-872.03,0.00012132,2]
[346838119,1735314676804,-500.0,0.00012132,2]
[346838120,1735314676813,-514.99,0.00012132,2]
[346838121,1735314676823,-732.46,0.00012132,2]
[346838122,1735314676832,-917.39,0.00012132,2]
[346838123,1735314676842,-500.0,0.00012132,2]
[346838124,1735314676851,-500.0,0.00012132,2]
[346838125,1735314676861,-500.0,0.00012132,2]
[346838126,1735314676871,-500.0,0.00012132,2]
[346838127,1735314676883,-1047.31,0.00012132,2]
[346838128,1735314676892,-518.22,0.00012132,2]
[346838129,1735314676903,-1018.77,0.00012132,2]
[346838130,1735314676913,-805.78,0.00012132,2]
[346838131,1735314676923,-2067.35,0.00012132,2]
[346838132,1735314676933,-1076.75,0.00012132,2]
[346838133,1735314676947,-694.87,0.00012132,2]
[346838134,1735314676957,-500.0,0.00012132,2]
[346838135,1735314676967,-500.0,0.00012132,2]
[346838136,1735314676977,-714.69,0.00012132,2]
[346838137,1735314676987,-1364.79,0.00012132,2]
[346838138,1735314676997,-1049.39,0.00012132,2]
[346838139,1735314677007,-1576.91,0.00012132,2]
[346838140,1735314677016,-500.0,0.00012132,2]
[346838141,1735314677026,-1453.1,0.00012132,2]
[346838142,1735314677037,-1804.26,0.00012132,2]
[346838143,1735314677047,-500.0,0.00012132,2]
[346838144,1735314677058,-500.0,0.00012132,2]
[346838145,1735314677068,-808.62,0.00012132,2]
[346838146,1735314677079,-900.15,0.00012132,2]
[346838147,1735314677089,-334.0,0.00012132,2]
[346838148,1735314677100,-500.0,0.00012132,2]
[346838149,1735314677110,-1005.2,0.00012132,2]
[346838150,1735314677120,-500.0,0.00012132,2]
[346838151,1735314677196,-703.26,0.00012132,2]
[346838152,1735314677206,-1522.85,0.00012132,2]
[346838153,1735314677215,-1274.7,0.00012132,2]
[346838154,1735314677226,-1041.83,0.00012132,2]
[346838155,1735314677236,-533.01,0.00012132,2]
[346838156,1735314677246,-899.63,0.00012132,2]
[346838157,1735314677256,-558.98,0.00012132,2]
[346838158,1735314677267,-546.01,0.00012132,2]
[346838159,1735314677277,-831.44,0.00012132,2]
[346838160,1735314677288,-674.82,0.00012132,2]
[346838161,1735314677297,-500.0,0.00012132,2]
[346838162,1735314677307,-516.33,0.00012132,2]
[346838163,1735314677316,-804.91,0.00012132,2]
[346838164,1735314677325,-887.21,0.00012132,2]
[346838165,1735314677335,-517.58,0.00012132,2]
[346838166,1735314677348,-1176.98,0.00012132,2]
[346838167,1735314677358,-500.0,0.00012132,2]
[346838168,1735314677369,-500.0,0.00012132,2]
[346838169,1735314677380,-500.0,0.00012132,2]
[346838170,1735314677389,-1127.4,0.00012132,2]
[346838171,1735314677399,-341.84369536,0.00012132,2]
[346838172,1735314677412,-409.24630464,0.00012132,2]
[346838173,1735314677422,-500.0,0.00012132,2]
[346838174,1735314677432,-822.15,0.00012132,2]
[346838175,1735314677441,-1214.02,0.00012132,2]
[346838176,1735314677452,-1001.32205636,0.00012132,2]
[346838177,1735314677465,-371.72794364,0.00012132,2]
[346838178,1735314677475,-500.0,0.00012132,2]
[346838179,1735314677485,-514.52,0.00012132,2]
[346838180,1735314677494,-500.0,0.00012132,2]
[346838181,1735314677506,-2479.03,0.00012132,2]
[346838182,1735314677515,-1036.18,0.00012132,2]
[346838183,1735314677525,-510.53329773,0.00012132,2]
[346838184,1735314677536,-500.0,0.00012132,2]
[346838185,1735314677545,-500.0,0.00012132,2]
[346838186,1735314677555,-593.28,0.00012132,2]
[346838187,1735314677565,-1135.22,0.00012132,2]
[346838188,1735314677575,-800.73754463,0.00012132,2]
[346838189,1735314677601,-466.43999997,0.00011036,2]
[346838190,1735314677613,-407.04000003,0.00011036,2]
[346838191,1735314677622,-133.37245537,0.00012132,2]
[346838192,1735314677633,-637.79,0.00012132,2]
[346838193,1735314677643,-216.0475446,0.00012132,2]
[346838194,1735314677654,-309.8824554,0.00012132,2]
[346838195,1735314677663,-500.0,0.00012132,2]
[346838196,1735314677673,-599.43,0.00012132,2]
[346838197,1735314677682,-480.6875446,0.00012132,2]
[346838198,1735314677694,-414.3924554,0.00012132,2]
[346838199,1735314677703,-2150.28,0.00012132,2]
[346838200,1735314677713,-1043.81,0.00012132,2]
[346838201,1735314677723,-604.42,0.00012132,2]
[346838202,1735314677733,-818.91,0.00012132,2]
[346838203,1735314677743,-500.0,0.00012132,2]
[346838204,1735314677752,-1041.25,0.00012132,2]
[346838205,1735314677762,-517.22,0.00012132,2]
[346838206,1735314677771,-715.27,0.00012132,2]
[346838207,1735314677780,-500.0,0.00012132,2]
[346838208,1735314677791,-500.0,0.00012132,2]
[346838209,1735314677800,-500.0,0.00012132,2]
[346838210,1735314677810,-166.08144079,0.00012132,2]
[346838211,1735314677819,-1344.57,0.00012132,2]